[Event "Titled Tuesday Blitz February 14 Late 2023"]
[White "FuenfgegenWilly"]
[Black "Ramirez Allo, Eduardo"]
[BlackFideId "2224178"]
[WhiteElo "2322"]
[BlackElo "2274"]
[Result "0-1"]
[Round "05"]
[TimeControl "180+2"]
[Date "2023.02.14"]
[WhiteClock "0:00:05"]
[BlackClock "0:00:40"]

1. e4 {[%clk 0:03:00]}  c5 {[%clk 0:03:00]} 2. Nc3 {[%clk 0:03:01]}  a6 {[%clk 0:03:00]} 3. f4 {[%clk 0:03:01]}  b5 {[%clk 0:03:00]} 4. Nf3 {[%clk 0:03:02]}  Bb7 {[%clk 0:03:01]} 5. d4 {[%clk 0:03:02]}  cxd4 {[%clk 0:03:01]} 6. Qxd4 {[%clk 0:03:03]}  d6 {[%clk 0:03:01]} 7. Bd3 {[%clk 0:03:03]}  Nf6 {[%clk 0:03:00]} 8. h3 {[%clk 0:03:02]}  e6 {[%clk 0:03:00]} 9. O-O {[%clk 0:03:00]}  Be7 {[%clk 0:03:01]} 10. a3 {[%clk 0:02:56]}  O-O {[%clk 0:03:00]} 11. Kh1 {[%clk 0:02:56]}  Qc7 {[%clk 0:02:58]} 12. Be3 {[%clk 0:02:34]}  Nfd7 {[%clk 0:02:57]} 13. Bd2 {[%clk 0:02:13]}  Nc6 {[%clk 0:02:56]} 14. Qf2 {[%clk 0:02:12]}  Na5 {[%clk 0:02:54]} 15. f5 {[%clk 0:02:00]}  Nc4 {[%clk 0:02:41]} 16. Bxc4 {[%clk 0:01:57]}  Qxc4 {[%clk 0:02:42]} 17. Nd4 {[%clk 0:01:48]}  e5 {[%clk 0:02:37]} 18. Nf3 {[%clk 0:01:34]}  Nf6 {[%clk 0:02:31]} 19. b3 {[%clk 0:01:25]}  Qc7 {[%clk 0:02:23]} 20. Qe1 {[%clk 0:01:19]}  h6 {[%clk 0:02:14]} 21. Rc1 {[%clk 0:00:58]}  Rac8 {[%clk 0:02:12]} 22. Ng1 {[%clk 0:00:53]}  Qc6 {[%clk 0:02:11]} 23. a4 {[%clk 0:00:46]}  Nxe4 {[%clk 0:02:06]} 24. axb5 {[%clk 0:00:41]}  axb5 {[%clk 0:02:00]} 25. Nxe4 {[%clk 0:00:33]}  Qxe4 {[%clk 0:02:01]} 26. Qxe4 {[%clk 0:00:33]}  Bxe4 {[%clk 0:02:02]} 27. c4 {[%clk 0:00:33]}  Bd3 {[%clk 0:01:58]} 28. Rf3 {[%clk 0:00:30]}  bxc4 {[%clk 0:01:58]} 29. bxc4 {[%clk 0:00:31]}  Bxc4 {[%clk 0:01:57]} 30. Rfc3 {[%clk 0:00:25]}  d5 {[%clk 0:01:56]} 31. Nf3 {[%clk 0:00:23]}  f6 {[%clk 0:01:56]} 32. Be1 {[%clk 0:00:21]}  Rc6 {[%clk 0:01:33]} 33. Nd2 {[%clk 0:00:18]}  Rfc8 {[%clk 0:01:21]} 34. R3c2 {[%clk 0:00:13]}  Ba3 {[%clk 0:01:15]} 35. Ra1 {[%clk 0:00:10]}  Bb4 {[%clk 0:01:09]} 36. Nxc4 {[%clk 0:00:10]}  Rxc4 {[%clk 0:01:10]} 37. Rxc4 {[%clk 0:00:09]}  Rxc4 {[%clk 0:01:11]} 38. Bxb4 {[%clk 0:00:07]}  Rxb4 {[%clk 0:01:11]} 39. Ra7 {[%clk 0:00:07]}  Rf4 {[%clk 0:01:07]} 40. g4 {[%clk 0:00:07]}  Rf2 {[%clk 0:01:06]} 41. Rd7 {[%clk 0:00:05]}  d4 {[%clk 0:01:05]} 42. Kg1 {[%clk 0:00:06]}  Ra2 {[%clk 0:01:04]} 43. h4 {[%clk 0:00:04]}  Rd2 {[%clk 0:00:57]} 44. Kf1 {[%clk 0:00:03]}  e4 {[%clk 0:00:57]} 45. Kg1 {[%clk 0:00:02]}  e3 {[%clk 0:00:57]} 46. Re7 {[%clk 0:00:02]}  e2 {[%clk 0:00:49]} 47. Re6 {[%clk 0:00:02]}  Kf7 {[%clk 0:00:45]} 48. Kf2 {[%clk 0:00:03]}  d3 {[%clk 0:00:46]} 49. g5 {[%clk 0:00:02]}  hxg5 {[%clk 0:00:45]} 50. hxg5 {[%clk 0:00:02]}  fxg5 {[%clk 0:00:46]} 51. Ra6 {[%clk 0:00:02]}  Rd1 {[%clk 0:00:44]} 52. Re6 {[%clk 0:00:01]}  e1=Q+ {[%clk 0:00:40]} 53. Rxe1 {[%clk 0:00:02]}  Rxe1 {[%clk 0:00:41]} 54. Kxe1 {[%clk 0:00:02]}  g4 {[%clk 0:00:38]} 55. Kd2 {[%clk 0:00:03]}  g3 {[%clk 0:00:39]} 56. Kxd3 {[%clk 0:00:04]}  g2 {[%clk 0:00:40]} 57. Ke2 {[%clk 0:00:05]}  g1=Q {[%clk 0:00:40]} 0-1


[Site "https://www.chess.com"]

[Event "Titled Tuesday Blitz February 14 Late 2023"]
[White "Leonte, Sebastian-Marian"]
[Black "Davidson, Kevin"]
[WhiteFideId "1268767"]
[BlackFideId "2056810"]
[WhiteElo "1279"]
[BlackElo "2154"]
[Result "0-1"]
[Round "05"]
[TimeControl "180+2"]
[Date "2023.02.14"]
[WhiteClock "0:00:57"]
[BlackClock "0:01:06"]

1. e4 {[%clk 0:03:00]}  c5 {[%clk 0:02:59]} 2. Nf3 {[%clk 0:03:00]}  d6 {[%clk 0:02:59]} 3. d4 {[%clk 0:03:00]}  cxd4 {[%clk 0:03:00]} 4. Nxd4 {[%clk 0:03:01]}  Nf6 {[%clk 0:03:00]} 5. Nc3 {[%clk 0:03:01]}  a6 {[%clk 0:03:01]} 6. f3 {[%clk 0:03:00]}  e5 {[%clk 0:03:00]} 7. Nb3 {[%clk 0:03:01]}  Be6 {[%clk 0:03:01]} 8. Be3 {[%clk 0:02:59]}  Be7 {[%clk 0:03:01]} 9. Qd2 {[%clk 0:02:58]}  O-O {[%clk 0:03:01]} 10. O-O-O {[%clk 0:02:58]}  Nbd7 {[%clk 0:03:01]} 11. g4 {[%clk 0:02:58]}  b5 {[%clk 0:03:02]} 12. g5 {[%clk 0:02:56]}  b4 {[%clk 0:03:02]} 13. Ne2 {[%clk 0:02:51]}  Ne8 {[%clk 0:03:01]} 14. Kb1 {[%clk 0:02:49]}  a5 {[%clk 0:03:01]} 15. f4 {[%clk 0:02:28]}  a4 {[%clk 0:02:55]} 16. Nbc1 {[%clk 0:02:27]}  exf4 {[%clk 0:02:54]} 17. Nxf4 {[%clk 0:02:17]}  Bxg5 {[%clk 0:02:10]} 18. Nxe6 {[%clk 0:02:16]}  Bxe3 {[%clk 0:02:10]} 19. Qxe3 {[%clk 0:02:17]}  fxe6 {[%clk 0:02:10]} 20. Bc4 {[%clk 0:02:01]}  Qe7 {[%clk 0:01:57]} 21. Qh3 {[%clk 0:01:32]}  Nc7 {[%clk 0:01:48]} 22. Nd3 {[%clk 0:01:15]}  d5 {[%clk 0:01:13]} 23. exd5 {[%clk 0:01:00]}  exd5 {[%clk 0:01:13]} 24. Rhe1 {[%clk 0:00:57]}  Qd6 {[%clk 0:01:06]} 0-1


[Site "https://www.chess.com"]

[Event "Titled Tuesday Blitz February 14 Late 2023"]
[White "Cueto, Jonny"]
[Black "Poeta, Caio Medeiros"]
[WhiteFideId "3300145"]
[BlackFideId "2142660"]
[WhiteElo "2122"]
[BlackElo "2088"]
[Result "0-1"]
[Round "05"]
[TimeControl "180+2"]
[Date "2023.02.14"]
[WhiteClock "0:00:13"]
[BlackClock "0:00:08"]

1. d4 {[%clk 0:02:55]}  Nf6 {[%clk 0:02:45]} 2. Nf3 {[%clk 0:02:51]}  d5 {[%clk 0:02:43]} 3. g3 {[%clk 0:02:48]}  e6 {[%clk 0:02:41]} 4. Bg2 {[%clk 0:02:47]}  Be7 {[%clk 0:02:40]} 5. O-O {[%clk 0:02:45]}  O-O {[%clk 0:02:41]} 6. c4 {[%clk 0:02:45]}  c6 {[%clk 0:02:37]} 7. Nbd2 {[%clk 0:02:41]}  Nbd7 {[%clk 0:02:34]} 8. Qc2 {[%clk 0:02:39]}  b6 {[%clk 0:02:34]} 9. e4 {[%clk 0:02:37]}  dxc4 {[%clk 0:02:31]} 10. Nxc4 {[%clk 0:02:32]}  c5 {[%clk 0:02:32]} 11. Rd1 {[%clk 0:02:30]}  cxd4 {[%clk 0:02:28]} 12. Nxd4 {[%clk 0:02:23]}  Bb7 {[%clk 0:02:28]} 13. Nb5 {[%clk 0:02:16]}  Rc8 {[%clk 0:02:25]} 14. Qe2 {[%clk 0:02:11]}  Ba6 {[%clk 0:02:13]} 15. a4 {[%clk 0:01:52]}  Qe8 {[%clk 0:02:06]} 16. Bf4 {[%clk 0:01:32]}  Nc5 {[%clk 0:01:55]} 17. Ncd6 {[%clk 0:00:57]}  Bxd6 {[%clk 0:01:46]} 18. Bxd6 {[%clk 0:00:58]}  Nxa4 {[%clk 0:01:37]} 19. Bf1 {[%clk 0:00:34]}  Bxb5 {[%clk 0:01:17]} 20. Qxb5 {[%clk 0:00:35]}  Qxb5 {[%clk 0:01:17]} 21. Bxb5 {[%clk 0:00:36]}  Nxb2 {[%clk 0:01:18]} 22. Rdb1 {[%clk 0:00:33]}  Rfd8 {[%clk 0:00:17]} 23. e5 {[%clk 0:00:33]}  Nc4 {[%clk 0:00:10]} 24. Bxc4 {[%clk 0:00:26]}  Rxc4 {[%clk 0:00:05]} 25. Rxa7 {[%clk 0:00:20]}  Nd5 {[%clk 0:00:04]} 26. Rba1 {[%clk 0:00:14]}  g5 {[%clk 0:00:02]} 27. Ra8 {[%clk 0:00:13]}  Rxa8 {[%clk 0:00:02]} 28. Rxa8+ {[%clk 0:00:14]}  Kg7 {[%clk 0:00:03]} 29. Rb8 {[%clk 0:00:14]}  h5 {[%clk 0:00:03]} 30. Kg2 {[%clk 0:00:14]}  Kg6 {[%clk 0:00:03]} 31. h4 {[%clk 0:00:14]}  gxh4 {[%clk 0:00:03]} 32. gxh4 {[%clk 0:00:15]}  Rxh4 {[%clk 0:00:03]} 33. Rg8+ {[%clk 0:00:16]}  Kf5 {[%clk 0:00:03]} 34. Rh8 {[%clk 0:00:16]}  Rg4+ {[%clk 0:00:03]} 35. Kf1 {[%clk 0:00:15]}  h4 {[%clk 0:00:03]} 36. Rh7 {[%clk 0:00:15]}  f6 {[%clk 0:00:02]} 37. Rf7 {[%clk 0:00:15]}  Rg6 {[%clk 0:00:02]} 38. exf6 {[%clk 0:00:15]}  Rxf6 {[%clk 0:00:01]} 39. Rh7 {[%clk 0:00:16]}  Ke4 {[%clk 0:00:01]} 40. Rxh4+ {[%clk 0:00:16]}  Kd3 {[%clk 0:00:02]} 41. Rh3+ {[%clk 0:00:16]}  Kc4 {[%clk 0:00:02]} 42. Be5 {[%clk 0:00:17]}  Rf5 {[%clk 0:00:02]} 43. Bg3 {[%clk 0:00:17]}  b5 {[%clk 0:00:02]} 44. Rh8 {[%clk 0:00:18]}  e5 {[%clk 0:00:03]} 45. Rb8 {[%clk 0:00:18]}  b4 {[%clk 0:00:03]} 46. Rc8+ {[%clk 0:00:19]}  Kd4 {[%clk 0:00:02]} 47. Rd8 {[%clk 0:00:20]}  b3 {[%clk 0:00:02]} 48. Rb8 {[%clk 0:00:19]}  Kc3 {[%clk 0:00:03]} 49. Ke2 {[%clk 0:00:20]}  Nb4 {[%clk 0:00:03]} 50. Rb5 {[%clk 0:00:18]}  b2 {[%clk 0:00:03]} 51. Rc5+ {[%clk 0:00:09]}  Kb3 {[%clk 0:00:03]} 52. Bxe5 {[%clk 0:00:05]}  Rxe5+ {[%clk 0:00:03]} 53. Rxe5 {[%clk 0:00:06]}  b1=Q {[%clk 0:00:03]} 54. Re3+ {[%clk 0:00:07]}  Ka2 {[%clk 0:00:03]} 55. Kf3 {[%clk 0:00:08]}  Nc2 {[%clk 0:00:03]} 56. Re4 {[%clk 0:00:08]}  Qd1+ {[%clk 0:00:04]} 57. Kf4 {[%clk 0:00:09]}  Qf1 {[%clk 0:00:04]} 58. f3 {[%clk 0:00:09]}  Ne1 {[%clk 0:00:04]} 59. Ra4+ {[%clk 0:00:10]}  Kb3 {[%clk 0:00:04]} 60. Ra7 {[%clk 0:00:09]}  Qxf3+ {[%clk 0:00:05]} 61. Ke5 {[%clk 0:00:10]}  Qe3+ {[%clk 0:00:05]} 62. Kf5 {[%clk 0:00:10]}  Qxa7 {[%clk 0:00:06]} 63. Kf6 {[%clk 0:00:11]}  Qc5 {[%clk 0:00:06]} 64. Ke6 {[%clk 0:00:11]}  Kc4 {[%clk 0:00:05]} 65. Kf6 {[%clk 0:00:11]}  Qd5 {[%clk 0:00:06]} 66. Ke7 {[%clk 0:00:11]}  Qc6 {[%clk 0:00:06]} 67. Kf8 {[%clk 0:00:11]}  Qd7 {[%clk 0:00:06]} 68. Kg8 {[%clk 0:00:11]}  Kd5 {[%clk 0:00:07]} 69. Kf8 {[%clk 0:00:12]}  Ke6 {[%clk 0:00:08]} 70. Kg8 {[%clk 0:00:12]}  Kf6 {[%clk 0:00:08]} 71. Kh8 {[%clk 0:00:13]}  Qg7# {[%clk 0:00:08]} 0-1


[Site "https://www.chess.com"]

[Event "Titled Tuesday Blitz February 14 Late 2023"]
[White "Marin Masis, Jose Esteban"]
[Black "Gutkin, Ilya"]
[WhiteFideId "6508146"]
[BlackFideId "16203470"]
[WhiteElo "1938"]
[BlackElo "2273"]
[Result "0-1"]
[Round "05"]
[TimeControl "180+2"]
[Date "2023.02.14"]
[WhiteClock "0:00:08"]
[BlackClock "0:00:32"]

1. e4 {[%clk 0:02:55]}  e5 {[%clk 0:03:00]} 2. Nf3 {[%clk 0:02:54]}  Nc6 {[%clk 0:03:00]} 3. Bb5 {[%clk 0:02:50]}  Nf6 {[%clk 0:03:00]} 4. d3 {[%clk 0:02:49]}  Bc5 {[%clk 0:02:59]} 5. O-O {[%clk 0:02:48]}  d6 {[%clk 0:02:59]} 6. h3 {[%clk 0:02:47]}  h6 {[%clk 0:02:57]} 7. Be3 {[%clk 0:02:45]}  Bb6 {[%clk 0:02:54]} 8. Nbd2 {[%clk 0:02:44]}  O-O {[%clk 0:02:52]} 9. Nc4 {[%clk 0:02:44]}  Ne7 {[%clk 0:02:49]} 10. Nxb6 {[%clk 0:02:43]}  axb6 {[%clk 0:02:48]} 11. Re1 {[%clk 0:02:39]}  Ng6 {[%clk 0:02:48]} 12. Qd2 {[%clk 0:02:37]}  Nh5 {[%clk 0:02:45]} 13. d4 {[%clk 0:02:32]}  Qe7 {[%clk 0:02:36]} 14. Bxh6 {[%clk 0:01:47]}  gxh6 {[%clk 0:02:21]} 15. Qxh6 {[%clk 0:01:48]}  Nf6 {[%clk 0:01:09]} 16. Bc4 {[%clk 0:00:49]}  Be6 {[%clk 0:01:09]} 17. d5 {[%clk 0:00:47]}  Bd7 {[%clk 0:01:06]} 18. Ng5 {[%clk 0:00:44]}  Rfd8 {[%clk 0:00:57]} 19. Re3 {[%clk 0:00:43]}  Qf8 {[%clk 0:00:57]} 20. Nxf7 {[%clk 0:00:32]}  Kxf7 {[%clk 0:00:53]} 21. Qg5 {[%clk 0:00:26]}  Nf4 {[%clk 0:00:41]} 22. Rf3 {[%clk 0:00:18]}  Qg7 {[%clk 0:00:38]} 23. Qxg7+ {[%clk 0:00:16]}  Kxg7 {[%clk 0:00:39]} 24. Kh2 {[%clk 0:00:11]}  Nxe4 {[%clk 0:00:36]} 25. Re3 {[%clk 0:00:10]}  Nf6 {[%clk 0:00:35]} 26. g4 {[%clk 0:00:10]}  N6xd5 {[%clk 0:00:32]} 27. Rd1 {[%clk 0:00:08]}  Nxe3 {[%clk 0:00:32]} 28. fxe3 {[%clk 0:00:08]}  Ne6 {[%clk 0:00:32]} 0-1


[Site "https://www.chess.com"]

[Event "Titled Tuesday Blitz February 14 Late 2023"]
[White "Bouget, Alexandre"]
[Black "Souza, Gustavo Horokoski De"]
[WhiteFideId "681318"]
[BlackFideId "2146584"]
[WhiteElo "2267"]
[BlackElo "1943"]
[Result "1-0"]
[Round "05"]
[TimeControl "180+2"]
[Date "2023.02.14"]
[WhiteClock "0:00:04"]
[BlackClock "0:00:01"]

1. d4 {[%clk 0:02:09]}  Nf6 {[%clk 0:02:53]} 2. c4 {[%clk 0:02:09]}  c5 {[%clk 0:02:53]} 3. d5 {[%clk 0:02:08]}  e6 {[%clk 0:02:54]} 4. Nc3 {[%clk 0:02:07]}  exd5 {[%clk 0:02:54]} 5. cxd5 {[%clk 0:02:08]}  d6 {[%clk 0:02:54]} 6. e4 {[%clk 0:02:09]}  g6 {[%clk 0:02:54]} 7. f4 {[%clk 0:02:10]}  Bg7 {[%clk 0:02:54]} 8. e5 {[%clk 0:02:11]}  Bg4 {[%clk 0:02:48]} 9. Qb3 {[%clk 0:01:46]}  Qe7 {[%clk 0:02:36]} 10. Nb5 {[%clk 0:01:31]}  dxe5 {[%clk 0:02:27]} 11. d6 {[%clk 0:01:31]}  Qd7 {[%clk 0:02:11]} 12. Nc7+ {[%clk 0:01:25]}  Kf8 {[%clk 0:02:11]} 13. fxe5 {[%clk 0:01:22]}  Nh5 {[%clk 0:02:00]} 14. Qxb7 {[%clk 0:01:15]}  Bxe5 {[%clk 0:01:54]} 15. Bh6+ {[%clk 0:01:14]}  Bg7 {[%clk 0:01:52]} 16. Bb5 {[%clk 0:00:41]}  Qf5 {[%clk 0:01:40]} 17. Qxa8 {[%clk 0:00:24]}  Bxh6 {[%clk 0:01:18]} 18. Qxb8+ {[%clk 0:00:24]}  Kg7 {[%clk 0:01:19]} 19. Ne8+ {[%clk 0:00:24]}  Rxe8+ {[%clk 0:01:18]} 20. Qxe8 {[%clk 0:00:25]}  Nf6 {[%clk 0:01:12]} 21. d7 {[%clk 0:00:22]}  Qc2 {[%clk 0:00:31]} 22. Be2 {[%clk 0:00:18]}  Qd2+ {[%clk 0:00:23]} 23. Kf1 {[%clk 0:00:17]}  Bxd7 {[%clk 0:00:13]} 24. Qe5 {[%clk 0:00:15]}  Bf4 {[%clk 0:00:10]} 25. Qc3 {[%clk 0:00:14]}  Qd5 {[%clk 0:00:08]} 26. Rd1 {[%clk 0:00:12]}  Qe6 {[%clk 0:00:04]} 27. Nf3 {[%clk 0:00:12]}  Bc6 {[%clk 0:00:04]} 28. Bc4 {[%clk 0:00:11]}  Qg4 {[%clk 0:00:03]} 29. Kf2 {[%clk 0:00:09]}  Bg5 {[%clk 0:00:01]} 30. Rhg1 {[%clk 0:00:04]} 1-0


[Site "https://www.chess.com"]

[Event "Titled Tuesday Blitz February 14 Late 2023"]
[White "Haszon, David"]
[Black "Levine, David"]
[WhiteFideId "733610"]
[BlackFideId "2011611"]
[WhiteElo "2264"]
[BlackElo "2040"]
[Result "1-0"]
[Round "05"]
[TimeControl "180+2"]
[Date "2023.02.14"]
[WhiteClock "0:00:39"]
[BlackClock "0:00:01"]

1. d4 {[%clk 0:03:00]}  d5 {[%clk 0:02:59]} 2. Bf4 {[%clk 0:03:00]}  Nf6 {[%clk 0:02:59]} 3. e3 {[%clk 0:03:00]}  c5 {[%clk 0:02:58]} 4. Nd2 {[%clk 0:02:59]}  cxd4 {[%clk 0:02:56]} 5. exd4 {[%clk 0:02:59]}  Nc6 {[%clk 0:02:56]} 6. c3 {[%clk 0:02:59]}  Qb6 {[%clk 0:02:49]} 7. Qb3 {[%clk 0:02:58]}  Bf5 {[%clk 0:02:30]} 8. Ngf3 {[%clk 0:02:54]}  e6 {[%clk 0:02:30]} 9. Nh4 {[%clk 0:02:41]}  Bg4 {[%clk 0:02:26]} 10. h3 {[%clk 0:02:38]}  Bh5 {[%clk 0:02:25]} 11. g4 {[%clk 0:02:32]}  Bg6 {[%clk 0:02:25]} 12. Nxg6 {[%clk 0:02:11]}  hxg6 {[%clk 0:02:25]} 13. Bg2 {[%clk 0:02:02]}  Be7 {[%clk 0:02:24]} 14. O-O {[%clk 0:01:58]}  O-O {[%clk 0:02:16]} 15. Rfe1 {[%clk 0:01:58]}  Rfc8 {[%clk 0:02:08]} 16. Nf3 {[%clk 0:01:55]}  Ne8 {[%clk 0:02:01]} 17. Ne5 {[%clk 0:01:55]}  Nxe5 {[%clk 0:01:49]} 18. Bxe5 {[%clk 0:01:52]}  Qc6 {[%clk 0:01:43]} 19. Bg3 {[%clk 0:01:45]}  Nd6 {[%clk 0:01:43]} 20. Bxd5 {[%clk 0:01:42]}  exd5 {[%clk 0:01:37]} 21. Rxe7 {[%clk 0:01:43]}  b6 {[%clk 0:01:09]} 22. Rae1 {[%clk 0:01:39]}  Nc4 {[%clk 0:00:55]} 23. R1e2 {[%clk 0:01:27]}  g5 {[%clk 0:00:53]} 24. Qc2 {[%clk 0:01:26]}  Qf6 {[%clk 0:00:49]} 25. Qf5 {[%clk 0:01:21]}  Qxf5 {[%clk 0:00:41]} 26. gxf5 {[%clk 0:01:22]}  f6 {[%clk 0:00:31]} 27. Rd7 {[%clk 0:01:19]}  Rd8 {[%clk 0:00:29]} 28. Ree7 {[%clk 0:01:20]}  Rxd7 {[%clk 0:00:29]} 29. Rxd7 {[%clk 0:01:21]}  Nxb2 {[%clk 0:00:28]} 30. Rxd5 {[%clk 0:01:21]}  Rc8 {[%clk 0:00:24]} 31. Rd7 {[%clk 0:01:20]}  a5 {[%clk 0:00:22]} 32. Rb7 {[%clk 0:01:19]}  Na4 {[%clk 0:00:20]} 33. d5 {[%clk 0:01:17]}  Nxc3 {[%clk 0:00:16]} 34. d6 {[%clk 0:01:17]}  Rd8 {[%clk 0:00:14]} 35. Rxb6 {[%clk 0:01:10]}  Ne4 {[%clk 0:00:13]} 36. Ra6 {[%clk 0:01:07]}  a4 {[%clk 0:00:11]} 37. Kg2 {[%clk 0:01:05]}  Kf7 {[%clk 0:00:09]} 38. Ra7+ {[%clk 0:01:03]}  Kf8 {[%clk 0:00:09]} 39. Ra6 {[%clk 0:00:56]}  Kf7 {[%clk 0:00:05]} 40. Kf3 {[%clk 0:00:51]}  Nd2+ {[%clk 0:00:02]} 41. Ke2 {[%clk 0:00:49]}  Nc4 {[%clk 0:00:02]} 42. Kd3 {[%clk 0:00:45]}  Ne5+ {[%clk 0:00:01]} 43. Bxe5 {[%clk 0:00:45]}  fxe5 {[%clk 0:00:02]} 44. Ke4 {[%clk 0:00:45]}  Kf6 {[%clk 0:00:01]} 45. d7+ {[%clk 0:00:42]}  Ke7 {[%clk 0:00:01]} 46. Ra7 {[%clk 0:00:39]} 1-0


[Site "https://www.chess.com"]

[Event "Titled Tuesday Blitz February 14 Late 2023"]
[White "Djordjevic, Dejan N"]
[Black "Miszler, Levente"]
[WhiteFideId "913316"]
[BlackFideId "763276"]
[WhiteElo "2167"]
[BlackElo "2271"]
[Result "0-1"]
[Round "05"]
[TimeControl "180+2"]
[Date "2023.02.14"]
[WhiteClock "0:00:01"]
[BlackClock "0:00:39"]

1. e4 {[%clk 0:03:00]}  c6 {[%clk 0:02:59]} 2. d4 {[%clk 0:03:00]}  d5 {[%clk 0:02:57]} 3. Nd2 {[%clk 0:03:01]}  dxe4 {[%clk 0:02:46]} 4. Nxe4 {[%clk 0:03:00]}  Nf6 {[%clk 0:02:46]} 5. Ng5 {[%clk 0:03:00]}  h6 {[%clk 0:02:40]} 6. N5f3 {[%clk 0:03:00]}  Bg4 {[%clk 0:02:38]} 7. Bd3 {[%clk 0:02:59]}  e6 {[%clk 0:02:34]} 8. h3 {[%clk 0:02:59]}  Bxf3 {[%clk 0:02:28]} 9. Nxf3 {[%clk 0:02:58]}  Bd6 {[%clk 0:02:29]} 10. O-O {[%clk 0:02:57]}  Nbd7 {[%clk 0:02:29]} 11. c3 {[%clk 0:02:57]}  O-O {[%clk 0:02:29]} 12. Re1 {[%clk 0:02:56]}  Re8 {[%clk 0:02:28]} 13. Bc2 {[%clk 0:02:29]}  Qc7 {[%clk 0:02:27]} 14. b3 {[%clk 0:02:16]}  e5 {[%clk 0:02:27]} 15. Bb2 {[%clk 0:02:10]}  Rad8 {[%clk 0:02:13]} 16. c4 {[%clk 0:01:44]}  exd4 {[%clk 0:02:07]} 17. Nxd4 {[%clk 0:01:44]}  Ne5 {[%clk 0:02:00]} 18. Qe2 {[%clk 0:01:10]}  Neg4 {[%clk 0:01:48]} 19. Qf3 {[%clk 0:01:07]}  Ne5 {[%clk 0:01:35]} 20. Qf5 {[%clk 0:01:06]}  Bc5 {[%clk 0:01:24]} 21. Red1 {[%clk 0:01:01]}  b6 {[%clk 0:01:07]} 22. a3 {[%clk 0:00:56]}  Ng6 {[%clk 0:00:59]} 23. Rd2 {[%clk 0:00:48]}  Nh4 {[%clk 0:00:53]} 24. Qd3 {[%clk 0:00:20]}  Bxd4 {[%clk 0:00:53]} 25. Bxd4 {[%clk 0:00:19]}  c5 {[%clk 0:00:53]} 26. Qg3 {[%clk 0:00:13]}  Qxg3 {[%clk 0:00:52]} 27. fxg3 {[%clk 0:00:13]}  Nxg2 {[%clk 0:00:45]} 28. Kxg2 {[%clk 0:00:12]}  Rxd4 {[%clk 0:00:44]} 29. Rxd4 {[%clk 0:00:12]}  cxd4 {[%clk 0:00:45]} 30. Kf2 {[%clk 0:00:11]}  Ne4+ {[%clk 0:00:43]} 31. Kf3 {[%clk 0:00:10]}  Nc3 {[%clk 0:00:40]} 32. Rc1 {[%clk 0:00:07]}  Re3+ {[%clk 0:00:41]} 33. Kg2 {[%clk 0:00:01]}  Re2+ {[%clk 0:00:40]} 34. Kf3 {[%clk 0:00:01]}  Rd2 {[%clk 0:00:39]} 0-1


[Site "https://www.chess.com"]